fUSD/lending_fUSD_20240518
["ID","MTS","AMOUNT","RATE_DAILY","PERIOD"]
[327373242,1716027061382,-500.0,0.00036712,9]
[327373243,1716027061391,-500.0,0.00036712,9]
[327373244,1716027061400,-500.0,0.00036712,9]
[327373245,1716027061409,-500.0,0.00036712,9]
[327373246,1716027061419,-500.0,0.00036712,9]
[327373247,1716027061427,-500.0,0.00036712,9]
[327373248,1716027061436,-500.0,0.00036712,9]
[327373249,1716027061446,-500.0,0.00036712,9]
[327373250,1716027061455,-500.0,0.00036712,9]
[327373251,1716027061465,-500.0,0.00036712,9]
[327373252,1716027061475,-739.25,0.00036712,9]
[327373253,1716027061484,-500.0,0.00036712,9]
[327373254,1716027061494,-500.0,0.00036712,9]
[327373255,1716027061503,-528.64916967,0.00036712,9]
[327373256,1716027061512,-500.0,0.00036712,9]
[327373257,1716027061522,-804.77,0.00036712,9]
[327373258,1716027061531,-500.0,0.00036712,9]
[327373259,1716027061541,-150.0,0.00036712,9]
[327373260,1716027061550,-987.86,0.00036712,9]
[327373261,1716027061560,-500.0,0.00036712,9]
[327373262,1716027061572,-728.7,0.00036712,9]
[327373263,1716027061581,-500.0,0.00036712,9]
[327373264,1716027061590,-2308.42,0.00036712,9]
[327373265,1716027061599,-500.0,0.00036712,9]
[327373266,1716027061609,-581.62,0.00036712,9]
[327373267,1716027061617,-500.0,0.00036712,9]
[327373268,1716027061627,-500.0,0.00036712,9]
[327373269,1716027061636,-500.0,0.00036712,9]
[327373270,1716027061645,-500.0,0.00036712,9]
[327373271,1716027061654,-509.9448774,0.00036712,9]
[327373272,1716027061663,-4169.76,0.00036712,9]
[327373273,1716027061673,-500.0,0.00036712,9]
[327373274,1716027061682,-2844.7,0.00036712,9]
[327373275,1716027061692,-500.0,0.00036712,9]
[327373276,1716027061700,-500.0,0.00036712,9]
[327373277,1716027061710,-500.0,0.00036712,9]
[327373278,1716027061720,-500.0,0.00036712,9]
[327373279,1716027061729,-500.0,0.00036712,9]
[327373280,1716027061740,-500.0,0.00036712,9]
[327373281,1716027061750,-500.0,0.00036712,9]
[327373282,1716027061760,-500.0,0.00036712,9]
[327373283,1716027061769,-500.0,0.00036712,9]
[327373284,1716027061779,-1269.4,0.00036712,9]
[327373285,1716027061788,-500.0,0.00036712,9]
[327373286,1716027061797,-500.0,0.00036712,9]
[327373287,1716027061807,-500.0,0.00036712,9]
[327373288,1716027061816,-500.0,0.00036712,9]
[327373289,1716027061825,-506.98055301,0.00036712,9]
[327373290,1716027061835,-500.0,0.00036712,9]
[327373291,1716027061844,-500.0,0.00036712,9]
[327373292,1716027061854,-500.0,0.00036712,9]
[327373293,1716027061863,-500.0,0.00036712,9]
[327373294,1716027061873,-3069.88,0.00036712,9]
[327373295,1716027061882,-294.44319782,0.00036712,9]
[327373296,1716027061891,-535.06,0.00036712,9]
[327373297,1716027061901,-540.41,0.00036712,9]
[327373298,1716027061910,-500.0,0.00036712,9]
[327373299,1716027061919,-4030.13,0.00036712,9]
[327373300,1716027061928,-500.0,0.00036712,9]
[327373301,1716027061937,-646.59,0.00036712,9]
[327373302,1716027061946,-500.0,0.00036712,9]
[327373303,1716027061955,-500.0,0.00036712,9]
[327373304,1716027061964,-682.05,0.00036712,9]
[327373305,1716027061973,-500.0,0.00036712,9]
[327373306,1716027061983,-500.0,0.00036712,9]
[327373307,1716027061994,-500.0,0.00036712,9]
[327373308,1716027062004,-500.0,0.00036712,9]
[327373309,1716027062014,-500.0,0.00036712,9]
[327373310,1716027062025,-500.0,0.00036712,9]
[327373311,1716027062036,-500.0,0.00036712,9]
[327373312,1716027062045,-3657.87,0.00036712,9]
[327373313,1716027062055,-500.0,0.00036712,9]
[327373314,1716027062064,-513.64073322,0.00036712,9]
[327373315,1716027062074,-167.04403782,0.00036712,9]
[327373316,1716027062084,-4403.65,0.00036712,9]
[327373317,1716027062098,-500.0,0.00036712,9]
[327373318,1716027062107,-500.0,0.00036712,9]
[327373319,1716027062117,-3279.76,0.00036712,9]
[327373320,1716027062126,-500.0,0.00036712,9]
[327373321,1716027062139,-500.0,0.00036712,9]
[327373322,1716027062148,-500.0,0.00036712,9]
[327373323,1716027062157,-500.0,0.00036712,9]
[327373324,1716027062168,-500.0,0.00036712,9]
[327373325,1716027062177,-500.0,0.00036712,9]
[327373326,1716027062186,-500.0,0.00036712,9]
[327373327,1716027062196,-500.0,0.00036712,9]
[327373328,1716027062205,-3229.76,0.00036712,9]
[327373329,1716027062214,-500.0,0.00036712,9]
[327373330,1716027062225,-500.0,0.00036712,9]
[327373331,1716027062234,-500.0,0.00036712,9]
[327373332,1716027062243,-500.0,0.00036712,9]
[327373333,1716027062252,-500.0,0.00036712,9]
[327373334,1716027062263,-500.0,0.00036712,9]
[327373335,1716027062273,-500.0,0.00036712,9]
[327373336,1716027062282,-500.0,0.00036712,9]
[327373337,1716027062291,-574.36,0.00036712,9]
[327373338,1716027062301,-500.0,0.00036712,9]
[327373339,1716027062310,-500.0,0.00036712,9]
[327373340,1716027062319,-500.0,0.00036712,9]
[327373341,1716027062329,-500.0,0.00036712,9]
[327373342,1716027062475,-500.0,0.00036712,9]
[327373343,1716027062486,-500.0,0.00036712,9]
[327373344,1716027062496,-500.0,0.00036712,9]
[327373345,1716027062506,-547.24,0.00036712,9]
[327373346,1716027062516,-500.0,0.00036712,9]
[327373347,1716027062525,-500.0,0.00036712,9]
[327373348,1716027062535,-500.0,0.00036712,9]
[327373349,1716027062545,-778.58,0.00036712,9]
[327373350,1716027062554,-541.06,0.00036712,9]
[327373351,1716027062563,-500.0,0.00036712,9]
[327373352,1716027062573,-785.52,0.00036712,9]
[327373353,1716027062582,-500.0,0.00036712,9]
[327373354,1716027062592,-867.73,0.00036712,9]
[327373355,1716027062601,-500.0,0.00036712,9]
[327373356,1716027062611,-338.41495943,0.00036712,9]
[327373357,1716027062619,-500.0,0.00036712,9]
[327373358,1716027062629,-500.0,0.00036712,9]
[327373359,1716027062638,-500.0,0.00036712,9]
[327373360,1716027062647,-500.0,0.00036712,9]
[327373361,1716027062657,-500.0,0.00036712,9]
[327373362,1716027062667,-500.0,0.00036712,9]
[327373363,1716027062676,-500.0,0.00036712,9]
[327373364,1716027062685,-500.0,0.00036712,9]
[327373365,1716027062702,-198.07,0.00036712,9]
[327373366,1716027062711,-500.0,0.00036712,9]
[327373367,1716027062720,-500.0,0.00036712,9]
[327373368,1716027062730,-500.0,0.00036712,9]
[327373369,1716027062739,-500.0,0.00036712,9]
[327373370,1716027062748,-151.0,0.00036712,7]
[327373371,1716027062758,-500.0,0.00036712,9]
[327373372,1716027062767,-151.0,0.00036712,7]
[327373373,1716027062777,-500.0,0.00036712,9]
[327373374,1716027062786,-500.0,0.00036712,9]
[327373375,1716027062796,-849.85,0.00036712,9]
[327373376,1716027062805,-151.0,0.00036712,7]
[327373377,1716027062815,-500.0,0.00036712,9]
[327373378,1716027062824,-500.0,0.00036712,9]
[327373379,1716027062834,-3765.94,0.00036712,9]
[327373380,1716027062843,-500.0,0.00036712,9]
[327373381,1716027062853,-151.0,0.00036712,7]
[327373382,1716027062862,-151.0,0.00036712,7]
[327373383,1716027062871,-500.0,0.00036712,9]
[327373384,1716027062881,-151.0,0.00036712,7]
[327373385,1716027062890,-500.0,0.00036712,9]
[327373386,1716027062900,-270.579068,0.00036712,7]
[327373387,1716027062909,-3754.91,0.00036712,9]
[327373388,1716027062918,-500.0,0.00036712,9]
[327373389,1716027062927,-500.0,0.00036712,9]
[327373390,1716027062936,-500.0,0.00036712,9]
[327373391,1716027062946,-5415.09,0.00036712,9]
[327373392,1716027062954,-500.0,0.00036712,9]
[327373393,1716027062964,-500.0,0.00036712,9]
[327373394,1716027062973,-151.0,0.00036712,7]
[327373395,1716027062983,-500.0,0.00036712,9]
[327373396,1716027062992,-151.0,0.00036712,7]
[327373397,1716027063001,-9278.18,0.00036712,9]
[327373398,1716027063010,-500.0,0.00036712,9]
[327373399,1716027063020,-151.0,0.00036712,7]
[327373400,1716027063029,-500.0,0.00036712,9]
[327373401,1716027063039,-3867.98,0.00036712,9]
[327373402,1716027063048,-712.57,0.00036712,9]
[327373403,1716027063057,-500.0,0.00036712,9]
[327373404,1716027063067,-500.0,0.00036712,9]
[327373405,1716027063076,-500.0,0.00036712,9]
[327373406,1716027063086,-500.0,0.00036712,9]
[327373407,1716027063098,-500.0,0.00036712,9]
[327373408,1716027063107,-435.313561,0.00036712,7]
[327373409,1716027063117,-514.51305008,0.00036712,9]
[327373410,1716027063126,-500.0,0.00036712,9]
[327373411,1716027063136,-500.0,0.00036712,9]
[327373412,1716027063145,-2338.72,0.00036712,9]
[327373413,1716027063155,-435.313561,0.00036712,7]
[327373414,1716027063166,-220.590782,0.00036712,7]
[327373415,1716027063175,-500.0,0.00036712,9]
[327373416,1716027063184,-4259.86,0.00036712,9]
[327373417,1716027063195,-220.590782,0.00036712,7]
[327373418,1716027063203,-500.0,0.00036712,9]
[327373419,1716027063212,-151.0,0.00036712,7]
[327373420,1716027063221,-500.0,0.00036712,9]
[327373421,1716027063231,-151.0,0.00036712,7]
[327373422,1716027063240,-508.65603875,0.00036712,9]
[327373423,1716027063249,-500.0,0.00036712,9]
[327373424,1716027063259,-500.0,0.00036712,9]
[327373425,1716027063268,-1277.84,0.00036712,9]
[327373426,1716027063277,-500.0,0.00036712,9]
[327373427,1716027063286,-151.0,0.00036712,7]
[327373428,1716027063295,-500.0,0.00036712,9]
[327373429,1716027063305,-151.0,0.00036712,7]
[327373430,1716027063315,-500.0,0.00036712,9]
[327373431,1716027063324,-450.47,0.00036712,9]
[327373432,1716027063333,-500.0,0.00036712,9]
[327373433,1716027063343,-500.22,0.00036712,9]
[327373434,1716027063352,-793.67,0.00036712,9]
[327373435,1716027063361,-500.0,0.00036712,9]
[327373436,1716027063370,-500.0,0.00036712,9]
[327373437,1716027063379,-500.0,0.00036712,9]
[327373438,1716027063389,-1024.88,0.00036712,9]
[327373439,1716027063399,-500.0,0.00036712,9]
[327373440,1716027063408,-500.0,0.00036712,9]
[327373441,1716027063417,-500.0,0.00036712,9]
[327373442,1716027063427,-5514.99,0.00036712,9]
[327373443,1716027063436,-643.52,0.00036712,9]
[327373444,1716027063447,-500.0,0.00036712,9]
[327373445,1716027063456,-546.42,0.00036712,9]
[327373446,1716027063466,-500.0,0.00036712,9]
[327373447,1716027063476,-715.335731,0.00036712,7]
[327373448,1716027063486,-500.0,0.00036712,9]
[327373449,1716027063495,-715.335731,0.00036712,7]
[327373450,1716027063506,-915.4,0.00036712,9]
[327373451,1716027063515,-616.72,0.00036712,9]
[327373452,1716027063524,-4463.14,0.00036712,9]
[327373453,1716027063533,-546.25271558,0.00036712,9]
[327373454,1716027063543,-500.0,0.00036712,9]
[327373455,1716027063552,-586.04670618,0.00036712,9]
[327373456,1716027063880,-145.24329382,0.00036712,9]
[327373457,1716027063890,-151.0,0.00036712,7]
[327373458,1716027063899,-500.0,0.00036712,9]
[327373459,1716027063909,-500.0,0.00036712,9]
[327373460,1716027063918,-500.0,0.00036712,9]
[327373461,1716027063928,-500.0,0.00036712,9]
[327373462,1716027063937,-500.0,0.00036712,9]
[327373463,1716027063949,-500.0,0.00036712,9]
[327373464,1716027063959,-500.0,0.00036712,9]
[327373465,1716027063968,-500.0,0.00036712,9]
[327373466,1716027063977,-500.0,0.00036712,9]
[327373467,1716027063987,-1370.65,0.00036712,9]
[327373468,1716027063996,-246.59966,0.00036712,7]
[327373469,1716027064006,-500.0,0.00036712,9]
[327373470,1716027064015,-496.56165434,0.00036712,9]
[327373471,1716027064027,-1761.45834566,0.00036712,9]
[327373472,1716027064036,-500.0,0.00036712,9]
[327373473,1716027064046,-246.59966,0.00036712,7]
[327373474,1716027064055,-722.23,0.00036712,9]
[327373475,1716027064064,-500.0,0.00036712,9]
[327373476,1716027064073,-312.94892325,0.00036712,9]
[327373477,1716027064148,-187.05107675,0.00036712,9]
[327373478,1716027064158,-500.0,0.00036712,9]
[327373479,1716027064169,-522.73,0.00036712,9]
[327373480,1716027064178,-500.0,0.00036712,9]
[327373481,1716027064188,-533.04987451,0.00036712,9]
[327373482,1716027064199,-151.0,0.00036712,7]
[327373483,1716027064208,-500.0,0.00036712,9]
[327373484,1716027064218,-157.012962,0.00036712,7]
[327373485,1716027064228,-86.75609669,0.00036712,9]
[327373486,1716027064240,-413.24390331,0.00036712,9]
[327373487,1716027064250,-151.0,0.00036712,7]
[327373488,1716027064260,-500.0,0.00036712,9]
[327373489,1716027064269,-500.0,0.00036712,9]
[327373490,1716027064279,-500.0,0.00036712,9]
[327373491,1716027064288,-568.61,0.00036712,9]
[327373492,1716027064298,-500.0,0.00036712,9]
[327373493,1716027064307,-447.05021,0.00036712,7]
[327373494,1716027064317,-695.23,0.00036712,9]
[327373495,1716027064326,-500.0,0.00036712,9]
[327373496,1716027064335,-500.0,0.00036712,9]
[327373497,1716027064345,-500.0,0.00036712,9]
[327373498,1716027064354,-1052.06,0.00036712,9]
[327373499,1716027064363,-447.05021,0.00036712,7]
[327373500,1716027064373,-151.0,0.00036712,7]
[327373501,1716027064383,-500.0,0.00036712,9]
[327373502,1716027064392,-533.61,0.00036712,9]
[327373503,1716027064401,-500.0,0.00036712,9]
[327373504,1716027064411,-500.0,0.00036712,9]
[327373505,1716027064421,-500.0,0.00036712,9]
[327373506,1716027064430,-422.753091,0.00036712,7]
[327373507,1716027064440,-500.0,0.00036712,9]
[327373508,1716027064451,-500.0,0.00036712,9]
[327373509,1716027064460,-783.35,0.00036712,9]
[327373510,1716027064469,-422.753091,0.00036712,7]
[327373511,1716027064478,-690.29,0.00036712,9]
[327373512,1716027064487,-500.0,0.00036712,9]
[327373513,1716027064496,-525.98,0.00036712,9]
[327373514,1716027064505,-500.0,0.00036712,9]
[327373515,1716027064515,-629.44,0.00036712,9]
[327373516,1716027064525,-500.0,0.00036712,9]
[327373517,1716027064534,-934.8,0.00036712,9]
[327373518,1716027064695,-251.11341,0.00036712,7]
[327373519,1716027064705,-500.0,0.00036712,9]
[327373520,1716027064715,-500.0,0.00036712,9]
[327373521,1716027064726,-2042.79,0.00036712,9]
[327373522,1716027064736,-500.0,0.00036712,9]
[327373523,1716027064746,-690.88,0.00036712,9]
[327373524,1716027064756,-500.0,0.00036712,9]
[327373525,1716027064766,-251.11341,0.00036712,7]
[327373526,1716027064775,-514.89,0.00036712,9]
[327373527,1716027064784,-500.0,0.00036712,9]
[327373528,1716027064794,-500.0,0.00036712,9]
[327373529,1716027064803,-1319.08,0.00036712,9]
[327373530,1716027064813,-500.0,0.00036712,9]
[327373531,1716027064823,-423.524968,0.00036712,7]
[327373532,1716027064833,-500.0,0.00036712,9]
[327373533,1716027064842,-500.0,0.00036712,9]
[327373534,1716027064852,-1381.199649,0.00036712,7]
[327373535,1716027064861,-423.524968,0.00036712,7]
[327373536,1716027064870,-500.0,0.00036712,9]
[327373537,1716027064880,-500.0,0.00036712,9]
[327373538,1716027064890,-546.09,0.00036712,9]
[327373539,1716027064899,-151.0,0.00036712,7]
[327373540,1716027064908,-1381.199649,0.00036712,7]
[327373541,1716027064918,-3803.72,0.00036712,9]
[327373542,1716027064927,-500.0,0.00036712,9]
[327373543,1716027064936,-593.45,0.00036712,9]
[327373544,1716027064947,-797.77,0.00036712,9]
[327373545,1716027064956,-500.0,0.00036712,9]
[327373546,1716027064965,-2284.56,0.00036712,9]
[327373547,1716027064975,-500.0,0.00036712,9]
[327373548,1716027064984,-538.34,0.00036712,9]
[327373549,1716027064993,-500.0,0.00036712,9]
[327373550,1716027065004,-500.0,0.00036712,9]
[327373551,1716027065013,-343.398027,0.00036712,7]
[327373552,1716027065023,-827.64,0.00036712,9]
[327373553,1716027065033,-500.0,0.00036712,9]
[327373554,1716027065042,-832.88,0.00036712,9]
[327373555,1716027065052,-2188.52,0.00036712,9]
[327373556,1716027065062,-500.0,0.00036712,9]
[327373557,1716027065071,-343.398027,0.00036712,7]
[327373558,1716027065082,-796.82,0.00036712,9]
[327373559,1716027065096,-500.0,0.00036712,9]
[327373560,1716027065105,-815.72,0.00036712,9]
[327373561,1716027065115,-151.0,0.00036712,7]
[327373562,1716027065125,-500.0,0.00036712,9]
[327373563,1716027065136,-500.0,0.00036712,9]
[327373564,1716027065146,-328.52393,0.00036712,7]
[327373565,1716027065155,-500.0,0.00036712,9]
[327373566,1716027065165,-500.0,0.00036712,9]
[327373567,1716027065178,-151.0,0.00036712,7]
[327373568,1716027065188,-500.0,0.00036712,9]
[327373569,1716027065198,-752.83,0.00036712,9]
[327373570,1716027065208,-186.44532364,0.00036712,9]
[327373571,1716027065225,-313.55467636,0.00036712,9]
[327373572,1716027065235,-265.79532364,0.00036712,9]
[327373573,1716027065579,-337.08969517,0.0003616,2]
[327373574,1716027065591,-532.02030483,0.0003616,2]
[327373575,1716027065600,-187.93768276,0.0003616,2]
[327373576,1716027065612,-227.32231724,0.0003616,2]
[327373577,1716027065621,-599.01467636,0.00036712,9]
[327373578,1716027065631,-932.675204,0.00036712,7]
[327373579,1716027065641,-328.52393,0.00036712,7]
[327373580,1716027065650,-1041.01,0.00036712,9]
[327373581,1716027065659,-500.0,0.00036712,9]
[327373582,1716027065669,-500.0,0.00036712,9]
[327373583,1716027065678,-1424.33,0.00036712,9]
[327373584,1716027065687,-151.0,0.00036712,7]
[327373585,1716027065698,-196.46888,0.00036712,7]
[327373586,1716027065707,-932.675204,0.00036712,7]
[327373587,1716027065716,-500.0,0.00036712,9]
[327373588,1716027065726,-500.0,0.00036712,9]
[327373589,1716027065735,-357.51907744,0.00036712,9]
[327373590,1716027065744,-1362.23,0.00036712,9]
[327373591,1716027065753,-151.0,0.00036712,7]
[327373592,1716027065763,-500.0,0.00036712,9]
[327373593,1716027065773,-196.46888,0.00036712,7]
[327373594,1716027065783,-151.0,0.00036712,7]
[327373595,1716027065792,-500.0,0.00036712,9]
[327373596,1716027065801,-500.0,0.00036712,9]
[327373597,1716027065811,-939.57,0.00036712,9]
[327373598,1716027065819,-1087.06,0.00036712,9]
[327373599,1716027065829,-500.0,0.00036712,9]
[327373600,1716027065838,-500.0,0.00036712,9]
[327373601,1716027065847,-500.0,0.00036712,9]
[327373602,1716027065857,-500.0,0.00036712,9]
[327373603,1716027065866,-151.0,0.00036712,7]
[327373604,1716027065875,-500.0,0.00036712,9]
[327373605,1716027065885,-696.54,0.00036712,9]
[327373606,1716027065894,-1289.9,0.00036712,9]
[327373607,1716027065904,-500.0,0.00036712,9]
[327373608,1716027065913,-559.66,0.00036712,9]
[327373609,1716027065922,-827.87915845,0.00036712,9]
[327373610,1716027065953,-2213.86084155,0.00036712,9]
[327373611,1716027065962,-825.26,0.00036712,9]
[327373612,1716027065972,-151.0,0.00036712,7]
[327373613,1716027065981,-500.0,0.00036712,9]
[327373614,1716027065990,-500.0,0.00036712,9]
[327373615,1716027065999,-759.62,0.00036712,9]
[327373616,1716027066008,-629.52,0.00036712,9]
[327373617,1716027066017,-500.0,0.00036712,9]
[327373618,1716027066026,-534.49,0.00036712,9]
[327373619,1716027066035,-275.024972,0.00036712,7]
[327373620,1716027066044,-570.27,0.00036712,9]
[327373621,1716027066053,-500.0,0.00036712,9]
[327373622,1716027066062,-275.024972,0.00036712,7]
[327373623,1716027066071,-500.0,0.00036712,9]
[327373624,1716027066081,-151.0,0.00036712,7]
[327373625,1716027066093,-500.0,0.00036712,9]
[327373626,1716027066103,-912.9,0.00036712,9]
[327373627,1716027066112,-697.12,0.00036712,9]
[327373628,1716027066122,-549.38,0.00036712,9]
[327373629,1716027066132,-500.0,0.00036712,9]
[327373630,1716027066144,-500.0,0.00036712,9]
[327373631,1716027066153,-500.0,0.00036712,9]
[327373632,1716027066165,-4223.91,0.00036712,9]
[327373633,1716027066176,-151.0,0.00036712,7]
[327373634,1716027066185,-1065.59,0.00036712,9]
[327373635,1716027066195,-631.5,0.00036712,9]
[327373636,1716027066204,-545.68,0.00036712,9]
[327373637,1716027066213,-500.0,0.00036712,9]
[327373638,1716027066222,-151.0,0.00036712,7]
[327373639,1716027066232,-500.0,0.00036712,9]
[327373640,1716027066241,-270.180676,0.00036712,7]
[327373641,1716027066250,-500.0,0.00036712,9]
[327373642,1716027066259,-500.0,0.00036712,9]
[327373643,1716027066268,-270.180676,0.00036712,7]
[327373644,1716027066277,-500.0,0.00036712,9]
[327373645,1716027066286,-610.38,0.00036712,9]
[327373646,1716027066295,-3746.55,0.00036712,9]
[327373647,1716027066304,-838.53,0.00036712,9]
[327373648,1716027066315,-500.0,0.00036712,9]
[327373649,1716027066324,-500.0,0.00036712,9]
[327373650,1716027066333,-500.0,0.00036712,9]
[327373651,1716027066343,-584.1,0.00036712,9]
[327373652,1716027066352,-500.0,0.00036712,9]
[327373653,1716027066361,-151.0,0.00036712,7]
[327373654,1716027066371,-732.68,0.00036712,9]
[327373655,1716027066380,-4471.01,0.00036712,9]
[327373656,1716027066390,-1692.03,0.00036712,9]
[327373657,1716027066399,-1112.92,0.00036712,9]
[327373658,1716027066408,-500.0,0.00036712,9]
[327373659,1716027066418,-500.0,0.00036712,9]
[327373660,1716027066428,-151.0,0.00036712,7]
[327373661,1716027066438,-500.0,0.00036712,9]
[327373662,1716027066448,-500.0,0.00036712,9]
[327373663,1716027066457,-500.0,0.00036712,9]
[327373664,1716027066468,-500.0,0.00036712,9]
[327373665,1716027066479,-542.74,0.00036712,9]
[327373666,1716027066488,-500.0,0.00036712,9]
[327373667,1716027066497,-612.12,0.00036712,9]
[327373668,1716027066507,-2831.58512469,0.00036785,9]
[327373669,1716027066516,-1000.0,0.000368,7]
[327373670,1716027066526,-4700.0,0.000369,13]
[327373671,1716027066535,-298.15,0.00036914,2]
[327373672,1716027066545,-305.9617255,0.00036915,2]
[327373673,1716027066554,-3163.0855683,0.00036983,2]
[327373674,1716027066563,-500.0,0.00036985,9]
[327373675,1716027066572,-1152.06,0.00036985,9]
[327373676,1716027066582,-500.0,0.00036985,9]
[327373677,1716027066591,-500.0,0.00036985,9]
[327373678,1716027066600,-500.0,0.00036986,9]
[327373679,1716027066610,-500.0,0.00036986,9]
[327373680,1716027066619,-3858.95,0.00036986,9]
[327373681,1716027066628,-5237.91,0.00036986,9]
[327373682,1716027066637,-500.0,0.00036986,9]
[327373683,1716027066646,-500.0,0.00036986,9]
[327373684,1716027066656,-500.0,0.00036986,9]
[327373685,1716027066665,-500.0,0.00036986,9]
[327373686,1716027066675,-500.0,0.00036986,9]
[327373687,1716027066684,-541.0,0.00036986,9]
[327373688,1716027066693,-525.08,0.00036986,9]
[327373689,1716027066702,-701.67,0.00036986,9]
[327373690,1716027066712,-500.0,0.00036986,9]
[327373691,1716027066721,-500.0,0.00036986,9]
[327373692,1716027066730,-3615.35,0.00036986,9]
[327373693,1716027066739,-500.0,0.00036986,9]
[327373694,1716027066748,-500.0,0.00036986,9]
[327373695,1716027066757,-500.0,0.00036986,9]
[327373696,1716027066766,-543.4,0.00036986,7]
[327373697,1716027066775,-762.31,0.00036986,9]
[327373698,1716027066784,-500.0,0.00036986,9]
[327373699,1716027066793,-540.5130481,0.00036986,9]
[327373700,1716027066803,-500.0,0.00036986,9]
[327373701,1716027066812,-500.0,0.00036986,9]
[327373702,1716027066821,-500.0,0.00036986,9]
[327373703,1716027066830,-500.0,0.00036986,9]
[327373704,1716027066839,-724.11,0.00036986,9]
[327373705,1716027066848,-500.0,0.00036986,9]
[327373706,1716027066857,-808.58,0.00036986,9]
[327373707,1716027066866,-521.49018688,0.00036986,9]
[327373708,1716027066875,-500.0,0.00036986,9]
[327373709,1716027066884,-500.0,0.00036986,9]
[327373710,1716027066893,-500.0,0.00036986,9]
[327373711,1716027066903,-500.0,0.00036986,9]
[327373712,1716027066912,-500.0,0.00036986,9]
[327373713,1716027066921,-500.0,0.00036986,9]
[327373714,1716027067064,-500.0,0.00036986,9]
[327373715,1716027067075,-500.0,0.00036986,9]
[327373716,1716027067085,-631.73,0.00036986,9]
[327373717,1716027067099,-355.32366135,0.00036986,9]
[327373718,1716027067108,-579.25,0.00036986,9]
[327373719,1716027067117,-500.0,0.00036986,9]
[327373720,1716027067127,-500.0,0.00036986,9]
[327373721,1716027067136,-500.0,0.00036986,9]
[327373722,1716027067145,-565.14,0.00036986,9]
[327373723,1716027067154,-500.0,0.00036986,9]
[327373724,1716027067163,-715.53,0.00036986,9]
[327373725,1716027067172,-500.0,0.00036986,9]
[327373726,1716027067183,-500.0,0.00036986,9]
[327373727,1716027067193,-500.0,0.00036986,9]
[327373728,1716027067202,-500.0,0.00036986,9]
[327373729,1716027067211,-522.99,0.00036986,9]
[327373730,1716027067221,-500.0,0.00036986,9]
[327373731,1716027067230,-500.0,0.00036986,9]
[327373732,1716027067239,-500.0,0.00036986,9]
[327373733,1716027067248,-500.0,0.00036986,9]
[327373734,1716027067258,-500.0,0.00036986,9]
[327373735,1716027067267,-500.0,0.00036986,9]
[327373736,1716027067276,-500.0,0.00036986,9]
[327373737,1716027067285,-500.0,0.00036986,9]
[327373738,1716027067294,-183.67346578,0.00036986,9]
[327373739,1716027067303,-500.0,0.00036986,9]
[327373740,1716027067313,-739.25,0.00036986,9]
[327373741,1716027067322,-500.0,0.00036986,9]